fUST/lending_fUST_20240215
["ID","MTS","AMOUNT","RATE_DAILY","PERIOD"]
[314092994,1707971442210,-1643.32,0.00036622,14]
[314092995,1707971442219,-151.0,0.00036622,2]
[314092996,1707971442228,-151.0,0.00036622,2]
[314092997,1707971442238,-500.0,0.00036622,14]
[314092998,1707971442248,-500.0,0.00036622,14]
[314092999,1707971442258,-2522.53,0.00036622,14]
[314093000,1707971442268,-151.0,0.00036623,2]
[314093001,1707971442280,-500.0,0.00036623,14]
[314093002,1707971442289,-500.0,0.00036623,14]
[314093003,1707971442299,-500.0,0.00036624,14]
[314093004,1707971442310,-569.62856393,0.00036624,14]
[314093005,1707971442321,-505.07339131,0.00036624,14]
[314093006,1707971442331,-500.0,0.00036624,14]
[314093007,1707971442340,-547.99777768,0.00036624,14]
[314093008,1707971442349,-500.0,0.00036624,14]
[314093009,1707971442358,-500.0,0.00036624,14]
[314093010,1707971442367,-916.37,0.00036624,14]
[314093011,1707971442376,-593.73,0.00036624,14]
[314093012,1707971442386,-500.0,0.00036624,14]
[314093013,1707971442395,-540.13,0.00036624,14]
[314093014,1707971442404,-393.15183719,0.00036624,14]
[314093015,1707971442414,-500.0,0.00036624,14]
[314093016,1707971442423,-698.3,0.00036624,14]
[314093017,1707971442433,-500.0,0.00036624,14]
[314093018,1707971442442,-510.66884095,0.00036624,14]
[314093019,1707971442452,-500.0,0.00036624,14]
[314093020,1707971442462,-507.61309093,0.00036624,14]
[314093021,1707971442471,-529.90121524,0.00036624,14]
[314093022,1707971442481,-500.0,0.00036624,14]
[314093023,1707971442490,-151.708057,0.00036624,2]
[314093024,1707971442500,-2113.44,0.00036624,14]
[314093025,1707971442509,-151.0,0.00036624,2]
[314093026,1707971442519,-151.0,0.00036624,2]
[314093027,1707971442528,-500.0,0.00036624,14]
[314093028,1707971442538,-500.0,0.00036624,14]
[314093029,1707971442547,-1063.08,0.00036624,14]
[314093030,1707971442557,-500.0,0.00036624,14]
[314093031,1707971442566,-442.04517344,0.00036624,14]
[314093032,1707971442575,-1637.93,0.00036624,14]
[314093033,1707971442584,-500.0,0.00036624,14]
[314093034,1707971442593,-500.0,0.00036624,14]
[314093035,1707971442603,-18029.82,0.00036624,14]
[314093037,1707971442612,-500.0,0.00036624,14]
[314093038,1707971442621,-639.53,0.00036624,14]
[314093039,1707971442631,-17288.41,0.00036624,14]
[314093040,1707971442640,-2010.67,0.00036624,14]
[314093041,1707971442650,-5381.8,0.00036624,14]
[314093043,1707971442659,-1456.62,0.00036624,14]
[314093045,1707971442669,-939.08,0.00036624,14]
[314093047,1707971442677,-1930.14,0.00036624,14]
[314093048,1707971442687,-151.526744,0.00036624,2]
[314093049,1707971442696,-500.0,0.00036624,14]
[314093050,1707971442705,-500.0,0.00036625,14]
[314093051,1707971442714,-500.0,0.00036626,14]
[314093052,1707971442723,-500.0,0.00036626,14]
[314093053,1707971442731,-515.87291042,0.00036626,14]
[314093054,1707971442741,-500.0,0.00036626,14]
[314093056,1707971442750,-500.0,0.00036626,14]
[314093057,1707971442760,-557.77740763,0.00036626,14]
[314093059,1707971442769,-823.56,0.00036626,14]
[314093060,1707971442778,-507.8299765,0.00036626,14]
[314093061,1707971442787,-243.24558305,0.00036626,14]
[314093062,1707971442796,-500.0,0.00036626,14]
[314093063,1707971442805,-500.0,0.00036626,14]
[314093064,1707971442813,-500.0,0.00036626,14]
[314093065,1707971442822,-229.69975012,0.00036626,14]
[314093066,1707971442831,-502.74547419,0.00036626,14]
[314093067,1707971442841,-504.65261844,0.00036626,14]
[314093068,1707971442850,-563.14162363,0.00036626,14]
[314093069,1707971442923,-501.86324605,0.00036626,14]
[314093071,1707971442932,-500.0,0.00036626,14]
[314093073,1707971442941,-500.0,0.00036626,14]
[314093074,1707971442950,-500.0,0.00036626,14]
[314093076,1707971442959,-500.0,0.00036626,14]
[314093077,1707971442967,-505.77159695,0.00036626,14]
[314093078,1707971442977,-500.0,0.00036626,14]
[314093080,1707971442986,-507.25398123,0.00036626,14]
[314093082,1707971442995,-500.0,0.00036626,14]
[314093083,1707971443004,-500.0,0.00036626,14]
[314093085,1707971443013,-500.0,0.00036626,14]
[314093087,1707971443023,-388.7769542,0.00036626,7]
[314093088,1707971443034,-500.0,0.00036626,14]
[314093090,1707971443043,-333.62986552,0.00036626,14]
[314093092,1707971443052,-500.0,0.00036626,14]
[314093093,1707971443062,-500.0,0.00036626,14]
[314093095,1707971443071,-500.0,0.00036626,14]
[314093096,1707971443081,-500.0,0.00036626,14]
[314093097,1707971443091,-265.94803034,0.00036626,14]
[314093099,1707971443101,-500.0,0.00036626,14]
[314093101,1707971443110,-240.52991629,0.00036626,14]
[314093102,1707971443119,-504.2872166,0.00036626,14]
[314093104,1707971443128,-504.57521768,0.00036626,14]
[314093105,1707971443137,-500.0,0.00036626,14]
[314093106,1707971443147,-500.0,0.00036626,14]
[314093107,1707971443158,-511.85670083,0.00036626,14]
[314093109,1707971443168,-272.28977375,0.00036626,14]
[314093110,1707971443177,-500.0,0.00036626,14]
[314093111,1707971443186,-535.37576033,0.00036626,14]
[314093112,1707971443195,-500.0,0.00036626,14]
[314093113,1707971443204,-500.0,0.00036626,14]
[314093114,1707971443213,-1500.0,0.0003663,2]
[314093115,1707971443222,-1500.0,0.00036633,2]
[314093116,1707971443233,-1500.0,0.00036638,2]
[314093117,1707971443242,-1500.0,0.0003664,2]
[314093118,1707971443253,-151.0,0.0003664,2]
[314093119,1707971443264,-1500.0,0.00036642,2]
[314093120,1707971443274,-1500.0,0.00036642,2]
[314093121,1707971443285,-1500.0,0.00036642,2]
[314093123,1707971443294,-151.0,0.00036642,2]
[314093125,1707971443303,-151.0,0.00036642,2]
[314093127,1707971443312,-151.0,0.00036642,2]
[314093129,1707971443322,-1500.0,0.00036644,2]
[314093130,1707971443331,-1500.0,0.00036646,2]
[314093131,1707971443340,-151.0,0.00036646,2]
[314093132,1707971443349,-151.0,0.00036646,2]
[314093133,1707971443358,-1500.0,0.00036652,2]
[314093134,1707971443368,-1500.0,0.00036654,2]
[314093135,1707971443377,-1500.0,0.00036655,2]
[314093136,1707971443386,-933.34,0.00036658,2]
[314093137,1707971443396,-444.27,0.0003666,2]
[314093138,1707971443406,-500.0,0.00036662,14]
[314093139,1707971443415,-1500.0,0.00036663,2]
[314093140,1707971443424,-1500.0,0.00036663,2]
[314093141,1707971443434,-1500.0,0.00036663,2]
[314093142,1707971443443,-151.0,0.00036663,2]
[314093143,1707971443452,-1500.0,0.00036667,2]
[314093144,1707971443462,-1500.0,0.00036668,2]
[314093145,1707971443471,-1500.0,0.00036673,2]
[314093146,1707971443481,-1500.0,0.00036674,2]
[314093147,1707971443490,-151.0,0.00036674,2]
[314093148,1707971443499,-1500.0,0.00036677,2]
[314093149,1707971443509,-1500.0,0.00036677,2]
[314093150,1707971443519,-300.0,0.00036683,3]
[314093151,1707971443528,-500.0,0.00036725,14]
[314093152,1707971443538,-500.0,0.00036725,14]
[314093153,1707971443547,-500.0,0.00036726,14]
[314093154,1707971443556,-2326.95,0.00036726,7]
[314093155,1707971443565,-548.30171102,0.00036726,14]
[314093156,1707971443575,-500.0,0.00036726,14]
[314093157,1707971443585,-500.0,0.00036728,7]
[314093158,1707971443594,-500.0,0.00036728,14]
[314093159,1707971443603,-500.0,0.00036728,7]
[314093160,1707971443612,-500.0,0.00036728,14]
[314093161,1707971443621,-462.73484267,0.00036728,14]
[314093162,1707971443632,-500.0,0.00036729,14]
[314093163,1707971443641,-500.0,0.00036729,14]
[314093164,1707971443650,-500.0,0.00036729,14]
[314093165,1707971443659,-16280.72,0.00036755,14]
[314093166,1707971443668,-855.86,0.00036755,14]
[314093167,1707971443678,-27012.92,0.00036755,14]
[314093168,1707971443687,-500.0,0.00036755,14]
[314093169,1707971443699,-16762.71,0.00036755,14]
[314093170,1707971443710,-500.0,0.00036755,14]
[314093171,1707971443720,-500.0,0.00036755,14]
[314093172,1707971443731,-500.0,0.00036755,14]
[314093173,1707971443745,-637.27,0.00036755,14]
[314093174,1707971443754,-624.09841432,0.00036758,14]
[314093175,1707971443764,-764.59,0.00036758,14]
[314093176,1707971443774,-2377.53,0.00036758,14]
[314093177,1707971443786,-1223.23,0.00036758,14]
[314093178,1707971443798,-849.03,0.00036758,14]
[314093179,1707971443808,-2047.66,0.00036758,14]
[314093180,1707971443818,-1375.14,0.00036758,14]
[314093181,1707971443830,-8504.9,0.00036758,14]
[314093182,1707971443839,-7996.03,0.00036758,14]
[314093183,1707971443849,-3337.16,0.00036758,14]
[314093184,1707971443860,-1364.21,0.00036759,14]
[314093185,1707971443870,-151.0,0.00036759,2]
[314093186,1707971443878,-500.0,0.00036759,14]
[314093187,1707971443888,-151.0,0.00036759,2]
[314093188,1707971443896,-1643.32,0.00036759,14]
[314093189,1707971443905,-151.0,0.00036759,2]
[314093190,1707971443915,-151.0,0.00036759,2]
[314093191,1707971443923,-535.48702604,0.00036759,14]
[314093192,1707971443933,-500.0,0.00036759,14]
[314093193,1707971443942,-2522.53,0.00036759,14]
[314093194,1707971443951,-550.05060092,0.0003676,14]
[314093195,1707971443961,-500.0,0.0003676,14]
[314093196,1707971443971,-513.83977446,0.00036761,14]
[314093197,1707971443980,-500.0,0.00036761,14]
[314093198,1707971443989,-500.0,0.00036761,14]
[314093199,1707971443998,-311.53393111,0.00036761,14]
[314093200,1707971444007,-916.37,0.00036761,14]
[314093201,1707971444017,-593.73,0.00036761,14]
[314093202,1707971444026,-500.0,0.00036761,14]
[314093203,1707971444035,-540.13,0.00036761,14]
[314093204,1707971444044,-151.0,0.00036761,2]
[314093205,1707971444053,-500.0,0.00036761,14]
[314093206,1707971444062,-698.3,0.00036761,14]
[314093207,1707971444071,-500.0,0.00036761,14]
[314093208,1707971444080,-510.65141927,0.00036761,14]
[314093209,1707971444089,-500.0,0.00036761,14]
[314093210,1707971444098,-2113.44,0.00036761,14]
[314093211,1707971444108,-151.0,0.00036761,2]
[314093212,1707971444117,-159.826059,0.00036761,2]
[314093213,1707971444126,-235.92277961,0.00036761,14]
[314093214,1707971444135,-500.0,0.00036761,14]
[314093215,1707971444143,-1063.08,0.00036761,14]
[314093216,1707971444153,-507.31418786,0.00036761,14]
[314093217,1707971444162,-1637.93,0.00036761,14]
[314093218,1707971444171,-507.80564015,0.00036761,14]
[314093219,1707971444180,-500.0,0.00036761,14]
[314093220,1707971444189,-10504.90202541,0.00036761,14]
[314093221,1707971444240,-7524.91797459,0.00036761,14]
[314093222,1707971444249,-639.53,0.00036761,14]
[314093223,1707971444258,-500.0,0.00036761,14]
[314093224,1707971444267,-500.0,0.00036761,14]
[314093225,1707971444276,-500.0,0.00036761,14]
[314093226,1707971444286,-534.01172213,0.00036761,14]
[314093227,1707971444295,-17288.41,0.00036761,14]
[314093228,1707971444304,-2010.67,0.00036761,14]
[314093229,1707971444313,-5381.8,0.00036761,14]
[314093230,1707971444323,-1456.62,0.00036761,14]
[314093231,1707971444332,-939.08,0.00036761,14]
[314093232,1707971444340,-1930.14,0.00036761,14]
[314093233,1707971444350,-500.0,0.00036761,14]
[314093234,1707971444359,-151.0,0.00036762,2]
[314093235,1707971444371,-341.64136384,0.00036763,14]
[314093236,1707971444445,-500.0,0.00036763,14]
[314093237,1707971444454,-151.0,0.00036763,2]
[314093238,1707971444464,-500.0,0.00036763,14]
[314093239,1707971444473,-500.0,0.00036763,14]
[314093240,1707971444482,-823.56,0.00036763,14]
[314093241,1707971444491,-323.48886372,0.00036763,14]
[314093242,1707971444500,-500.0,0.00036763,14]
[314093243,1707971444510,-500.0,0.00036763,14]
[314093244,1707971444519,-500.0,0.00036763,14]
[314093245,1707971444528,-500.0,0.00036763,14]
[314093246,1707971444538,-500.0,0.00036763,14]
[314093247,1707971444547,-500.0,0.00036763,14]
[314093248,1707971444556,-500.0,0.00036763,14]
[314093249,1707971444566,-503.17223067,0.00036763,14]
[314093250,1707971444575,-500.0,0.00036763,14]
[314093251,1707971444584,-500.0,0.00036763,14]
[314093252,1707971444594,-500.0,0.00036763,14]
[314093253,1707971444603,-500.0,0.00036763,14]
[314093254,1707971444613,-366.33668883,0.00036763,14]
[314093255,1707971444623,-500.0,0.00036763,14]
[314093256,1707971444632,-500.0,0.00036763,14]
[314093257,1707971444641,-500.0,0.00036763,14]
[314093258,1707971444650,-500.0,0.00036763,14]
[314093259,1707971444660,-500.0,0.00036763,14]
[314093260,1707971444671,-500.0,0.00036763,14]
[314093261,1707971444680,-500.0,0.00036763,14]
[314093262,1707971444690,-60176.7691108,0.000368,30]
[314093263,1707971444701,-1134.63544558,0.000368,30]
[314093264,1707971444894,-1876.52,0.00036471,3]
[314093265,1707971444905,-151.0,0.00036624,2]
[314093266,1707971444915,-151.0,0.00036699,2]
[314093267,1707971444924,-151.0,0.00036761,2]
[314093268,1707971444936,-500.0,0.00036763,14]
[314093269,1707971444947,-22332.13325413,0.000368,30]
[314093270,1707971444989,-4593.24569606,0.000368,30]
[314093282,1707971446637,-669.01,0.00036481,14]
[314093283,1707971446648,-669.01,0.00036618,14]
[314093284,1707971446659,-4905.9800014,0.000368,30]
[314093948,1707972638463,-3803.23770458,0.0003225,5]
[314093950,1707972638473,-8631.29658368,0.0003225,5]
[314093953,1707972638483,-2626.96941981,0.0003225,5]
[314093955,1707972638493,-229.0,0.0003444,2]
[314093956,1707972638502,-24900.0,0.0003444,2]
[314093959,1707972638511,-263.7118701,0.00034661,2]
[314093961,1707972638521,-169.886905,0.00034874,2]
[314093963,1707972638530,-810.611734,0.0003491,2]
[314093964,1707972638540,-442.256287,0.0003491,2]
[314093967,1707972638549,-810.611734,0.00035346,2]
[314093969,1707972638558,-442.256287,0.00035346,2]
[314093971,1707972638567,-155.0,0.00035383,2]
[314093974,1707972638576,-250.0,0.00035474,15]
[314093976,1707972638586,-500.0,0.00035616,2]
[314093978,1707972638596,-500.0,0.00035616,14]
[314093979,1707972638605,-500.0,0.00035616,14]
[314093982,1707972638614,-346.27020784,0.00035616,14]
[314093984,1707972638624,-1841.9,0.00035672,3]
[314093986,1707972638633,-2652.29,0.00035672,3]
[314093988,1707972638642,-500.0,0.00035681,14]
[314093990,1707972638651,-500.0,0.00035681,14]
[314093992,1707972638661,-50000.0,0.00035682,7]
[314093994,1707972638670,-199.64879942,0.00035682,2]
[314093996,1707972638679,-810.611734,0.00035782,2]
[314093998,1707972638688,-442.256287,0.00035782,2]
[314094000,1707972638697,-600.0,0.000358,3]
[314094002,1707972638706,-600.0,0.000358,2]
[314094004,1707972638715,-199.64879941,0.00035851,2]
[314094006,1707972638724,-500.0,0.00035999,14]
[314094008,1707972638734,-1296.0,0.00036,4]
[314094010,1707972638743,-11961.38661853,0.00036,2]
[314094012,1707972638752,-166.0,0.00036,2]
[314094014,1707972638761,-186.0,0.00036,2]
[314094016,1707972638770,-199.64879941,0.0003602,2]
[314094018,1707972638779,-153.34627261,0.00036038,7]
[314094020,1707972638789,-199.64879941,0.00036188,2]
[314094022,1707972638797,-810.611734,0.00036219,2]
[314094024,1707972638806,-442.256287,0.00036219,2]
[314094025,1707972638817,-265.57378665,0.00036319,15]
[314094026,1707972638826,-500.0,0.00036319,15]
[314094027,1707972638834,-500.0,0.00036319,15]
[314094028,1707972638843,-209.90373626,0.00036319,15]
[314094029,1707972638853,-183.61581775,0.00036319,15]
[314094030,1707972638862,-500.0,0.00036319,15]
[314094031,1707972638871,-500.0,0.00036319,15]
[314094032,1707972638881,-513.61772715,0.00036319,15]
[314094033,1707972638890,-241.81295279,0.00036319,15]
[314094034,1707972638899,-500.0,0.00036319,15]
[314094035,1707972638908,-500.0,0.00036319,15]
[314094036,1707972638918,-500.0,0.00036319,15]
[314094037,1707972638927,-500.0,0.00036319,15]
[314094038,1707972638936,-354.25238481,0.00036319,15]
[314094039,1707972638945,-500.0,0.00036319,15]
[314094040,1707972638953,-500.0,0.00036319,15]
[314094041,1707972638962,-500.0,0.00036319,15]
[314094042,1707972638971,-500.0,0.00036319,15]
[314094043,1707972638980,-500.0,0.00036319,15]
[314094044,1707972638989,-500.0,0.00036319,15]
[314094046,1707972638998,-500.0,0.00036319,15]
[314094048,1707972639008,-500.0,0.00036319,15]
[314094050,1707972639017,-500.0,0.00036319,15]
[314094052,1707972639026,-500.0,0.00036319,15]
[314094054,1707972639035,-500.0,0.00036319,15]
[314094056,1707972639044,-500.0,0.00036319,15]
[314094058,1707972639053,-500.0,0.00036319,15]
[314094060,1707972639062,-500.0,0.00036319,15]
[314094062,1707972639071,-500.0,0.00036319,15]
[314094063,1707972639080,-500.0,0.00036319,15]
[314094064,1707972639090,-500.0,0.00036319,15]
[314094065,1707972639100,-500.0,0.00036319,15]
[314094066,1707972639113,-556.64099354,0.00036319,15]
[314094067,1707972639122,-500.0,0.00036319,15]
[314094068,1707972639131,-500.0,0.00036319,15]
[314094069,1707972639140,-500.0,0.00036319,15]
[314094070,1707972639151,-500.0,0.00036319,15]
[314094071,1707972639160,-500.0,0.00036319,15]
[314094072,1707972639169,-500.0,0.00036319,15]
[314094073,1707972639178,-500.0,0.00036319,15]
[314094074,1707972639187,-500.0,0.00036319,15]
[314094076,1707972639196,-500.0,0.00036319,15]
[314094078,1707972639206,-500.0,0.00036319,15]
[314094080,1707972639216,-500.0,0.00036319,15]
[314094082,1707972639225,-500.0,0.00036319,15]
[314094084,1707972639234,-500.0,0.00036319,15]
[314094086,1707972639244,-500.0,0.00036319,15]
[314094088,1707972639253,-500.0,0.00036319,15]
[314094090,1707972639263,-500.0,0.00036319,15]
[314094093,1707972639272,-500.0,0.00036319,15]
[314094095,1707972639282,-500.0,0.00036319,15]
[314094097,1707972639291,-242.14726824,0.0003632,14]
[314094099,1707972639300,-16280.72,0.0003632,14]
[314094101,1707972639309,-855.86,0.0003632,14]
[314094103,1707972639318,-500.0,0.0003632,14]
[314094105,1707972639327,-17003.05,0.0003632,14]
[314094107,1707972639337,-637.27,0.0003632,14]
[314094109,1707972639346,-27049.88,0.0003632,14]
[314094111,1707972639356,-500.0,0.0003632,14]
[314094113,1707972639365,-5000.0,0.00036321,7]
[314094115,1707972639375,-5000.0,0.00036321,7]
[314094117,1707972639384,-199.64879941,0.00036357,2]
[314094119,1707972639394,-14571.35950289,0.00036375,61]
[314094121,1707972639403,-250.0,0.00036376,2]
[314094123,1707972639412,-502.42635629,0.00036379,14]
[314094125,1707972639421,-500.0,0.00036379,14]
[314094127,1707972639430,-517.23573722,0.00036379,2]
[314094129,1707972639439,-500.0,0.00036379,14]
[314094131,1707972639449,-339.46078471,0.00036379,14]
[314094133,1707972639458,-500.0,0.00036379,14]
[314094135,1707972639467,-500.0,0.00036379,14]
[314094137,1707972639477,-530.35047603,0.00036379,14]
[314094139,1707972639486,-500.0,0.00036379,14]
[314094141,1707972639495,-500.0,0.00036379,14]
[314094143,1707972639505,-500.0,0.00036379,14]
[314094145,1707972639514,-500.0,0.00036379,14]
[314094147,1707972639523,-1364.21,0.00036379,14]
[314094149,1707972639533,-512.63857938,0.00036379,14]
[314094151,1707972639542,-511.58957897,0.00036379,14]
[314094153,1707972639551,-500.0,0.00036379,14]
[314094155,1707972639564,-500.0,0.00036379,14]
[314094157,1707972639573,-534.30204635,0.00036379,14]
[314094159,1707972639582,-509.89484034,0.00036379,14]
[314094161,1707972639592,-789.24,0.00036379,14]
[314094163,1707972639601,-500.0,0.00036379,14]
[314094165,1707972639609,-1643.32,0.00036379,14]
[314094167,1707972639618,-500.0,0.00036379,14]
[314094169,1707972639627,-500.0,0.00036379,14]
[314094171,1707972639636,-500.0,0.00036379,14]
[314094173,1707972639645,-500.0,0.00036379,14]
[314094175,1707972639655,-500.0,0.00036381,14]
[314094177,1707972639664,-500.0,0.00036381,14]
[314094179,1707972639673,-500.0,0.00036381,14]
[314094181,1707972639683,-708.84,0.00036381,14]
[314094183,1707972639692,-2377.53,0.00036381,14]
[314094185,1707972639701,-1223.23,0.00036381,14]
[314094187,1707972639710,-849.03,0.00036381,14]
[314094189,1707972639720,-2047.66,0.00036381,14]
[314094191,1707972639729,-1375.14,0.00036381,14]
[314094193,1707972639739,-500.0,0.00036381,14]
[314094195,1707972639748,-500.0,0.00036381,14]
[314094197,1707972639757,-8504.9,0.00036381,14]
[314094199,1707972639766,-7996.03,0.00036381,14]
[314094201,1707972639776,-3337.16,0.00036381,14]
[314094203,1707972639785,-285.50953037,0.00036382,14]
[314094205,1707972639794,-510.46755575,0.00036382,14]
[314094207,1707972639804,-500.0,0.00036382,14]
[314094210,1707972639813,-517.39206153,0.00036382,14]
[314094213,1707972639822,-500.0,0.00036382,14]
[314094215,1707972639831,-195.99445327,0.00036382,14]
[314094217,1707972639841,-500.0,0.00036382,14]
[314094219,1707972639850,-500.0,0.00036382,14]
[314094221,1707972639859,-184.23353177,0.00036382,14]
[314094223,1707972639868,-514.93351127,0.00036382,14]
[314094225,1707972639877,-500.0,0.00036382,14]
[314094227,1707972639887,-516.94149683,0.00036382,14]
[314094229,1707972639897,-611.26,0.00036382,14]
[314094231,1707972639906,-500.0,0.00036382,14]
[314094233,1707972639914,-916.37,0.00036382,14]
[314094235,1707972639923,-593.73,0.00036382,14]
[314094237,1707972639933,-501.74485484,0.00036382,14]
[314094239,1707972639944,-540.13,0.00036382,14]
[314094241,1707972639953,-500.0,0.00036382,14]
[314094243,1707972639962,-500.0,0.00036382,14]
[314094245,1707972639971,-557.04962915,0.00036382,14]
[314094247,1707972639980,-506.57653874,0.00036382,14]
[314094249,1707972639989,-401.84311323,0.00036382,14]
[314094251,1707972639998,-500.0,0.00036382,14]
[314094253,1707972640007,-698.3,0.00036382,14]
[314094255,1707972640016,-266.15669203,0.00036382,14]
[314094257,1707972640025,-500.0,0.00036382,14]
[314094259,1707972640034,-500.0,0.00036382,14]
[314094261,1707972640043,-500.0,0.00036382,14]
[314094263,1707972640052,-500.0,0.00036382,14]
[314094265,1707972640060,-500.0,0.00036382,14]
[314094267,1707972640070,-2549.29,0.00036382,14]
[314094269,1707972640079,-500.0,0.00036382,14]
[314094271,1707972640088,-500.0,0.00036382,14]
[314094273,1707972640097,-489.82980321,0.00036382,14]
[314094275,1707972640109,-212.18676146,0.00036382,14]
[314094277,1707972640118,-583.6952767,0.00036382,14]
[314094279,1707972640128,-504.18399464,0.00036382,14]
[314094281,1707972640137,-2113.44,0.00036382,14]
[314094283,1707972640146,-500.0,0.00036382,14]
[314094285,1707972640155,-500.0,0.00036382,14]
[314094295,1707972640237,-500.0,0.00036382,14]
[314094297,1707972640247,-500.0,0.00036382,14]
[314094299,1707972640256,-500.0,0.00036382,14]
[314094301,1707972640265,-1063.08,0.00036382,14]
[314094303,1707972640275,-500.0,0.00036382,14]
[314094305,1707972640284,-1637.93,0.00036382,14]
[314094307,1707972640293,-500.0,0.00036382,14]
[314094309,1707972640302,-500.0,0.00036382,14]
[314094311,1707972640311,-17716.28,0.00036382,14]
[314094313,1707972640320,-500.0,0.00036382,14]
[314094315,1707972640329,-740.8,0.00036382,14]
[314094317,1707972640338,-500.0,0.00036382,14]
[314094319,1707972640347,-500.0,0.00036382,14]
[314094321,1707972640357,-500.0,0.00036382,14]
[314094323,1707972640366,-16568.06,0.00036382,14]
[314094325,1707972640375,-503.03626653,0.00036382,14]
[314094327,1707972640384,-5157.56,0.00036382,14]
[314094329,1707972640393,-2054.27,0.00036382,14]
[314094332,1707972640401,-1395.93,0.00036382,14]
[314094335,1707972640411,-899.95,0.00036382,14]
[314094337,1707972640420,-500.0,0.00036383,14]
[314094339,1707972640429,-500.0,0.00036383,14]
[314094341,1707972640439,-500.0,0.00036383,14]
[314094343,1707972640449,-500.0,0.00036383,14]
[314094345,1707972640459,-500.0,0.00036383,14]
[314094347,1707972640469,-500.0,0.00036383,14]
[314094349,1707972640480,-500.0,0.00036383,14]
[314094351,1707972640490,-500.0,0.00036383,14]
[314094353,1707972640501,-500.0,0.00036383,14]
[314094355,1707972640511,-500.0,0.00036383,14]
[314094357,1707972640521,-536.17297969,0.00036383,14]
[314094359,1707972640531,-500.0,0.00036383,15]
[314094361,1707972640541,-197.33585836,0.00036383,15]
[314094363,1707972640550,-409.87247855,0.00036383,15]
[314094365,1707972640559,-500.0,0.00036383,15]
[314094367,1707972640568,-596.70127433,0.00036383,15]
[314094368,1707972640577,-500.0,0.00036383,15]
[314094370,1707972640590,-500.0,0.00036383,15]
[314094373,1707972640600,-500.0,0.00036383,15]
[314094374,1707972640610,-500.0,0.00036383,15]
[314094376,1707972640619,-500.0,0.00036383,15]
[314094379,1707972640629,-500.0,0.00036383,15]
[314094380,1707972640639,-500.0,0.00036383,15]
[314094382,1707972640649,-500.0,0.00036383,15]
[314094384,1707972640658,-500.0,0.00036383,15]
[314094386,1707972640667,-237.36669679,0.00036383,15]
[314094388,1707972640677,-539.02217487,0.00036383,15]
[314094391,1707972640686,-500.0,0.00036383,15]
[314094393,1707972640695,-276.07965877,0.00036383,15]
[314094394,1707972640706,-500.0,0.00036383,15]
[314094396,1707972640715,-500.0,0.00036383,15]
[314094398,1707972640724,-500.0,0.00036383,15]
[314094401,1707972640733,-500.0,0.00036383,15]
[314094403,1707972640743,-500.0,0.00036383,15]
[314094405,1707972640752,-500.0,0.00036383,15]
[314094407,1707972640762,-500.0,0.00036383,15]
[314094409,1707972640771,-500.0,0.00036383,15]
[314094411,1707972640780,-500.0,0.00036383,15]
[314094413,1707972640790,-1110.06,0.00036383,2]
[314094415,1707972640799,-1110.06,0.00036383,2]
[314094417,1707972640809,-1110.06,0.00036383,2]